bitfinex/quotes_BTCUSD_20250423
["timestamp","ask_amount","ask_price","bid_price","bid_amount"]
[1745419793990,0.10689014,93046.0,93011.0,0.01075141]
[1745419794270,0.10689014,93046.0,93013.0,0.01075118]
[1745419794495,0.0037627,93045.0,93005.0,0.01075211]
[1745419794734,0.10689014,93043.0,93002.0,0.01075245]
[1745419794956,0.10689014,93043.0,93011.0,0.21502655]
[1745419795202,0.02851359,93042.0,93010.0,0.22578053]
[1745419795422,0.10689014,93041.0,93012.0,0.0107513]
[1745419795601,0.10689014,93041.0,93012.0,0.34]
[1745419796072,0.10689014,93041.0,93015.0,0.01075095]
[1745419796736,0.10689014,93041.0,93018.0,0.0107506]
[1745419796959,0.10689014,93041.0,93025.0,0.01074979]
[1745419797171,0.12232,93042.0,93027.0,0.34]
[1745419797351,0.12232,93042.0,93023.0,0.01075002]
[1745419797580,0.12232,93042.0,93022.0,0.35075014]
[1745419797581,0.001,93041.0,93022.0,0.34]
[1745419797789,0.11065232,93040.0,93020.0,0.34]
[1745419797987,0.10689014,93040.0,93020.0,0.34]
[1745419798796,0.11065269,93040.0,93013.0,0.01075118]
[1745419799018,0.11065269,93040.0,93015.0,0.34]
[1745419799248,0.11365269,93040.0,93015.0,0.34]
[1745419799761,0.049,93039.0,92998.0,0.01075291]
[1745419800056,0.15369014,93038.0,93006.0,0.01075199]
[1745419800330,0.15369014,93038.0,93020.0,0.01075037]
[1745419800644,0.0468,93038.0,93028.0,0.2149886]
[1745419800833,0.10689014,93037.0,93022.0,0.34]
[1745419801067,0.00376257,93036.0,93022.0,0.34]
[1745419801294,0.10689014,93035.0,93022.0,0.34]
[1745419801995,0.10689014,93035.0,93003.0,0.01075234]
[1745419801996,0.0498,93038.0,93020.0,0.34]
[1745419802210,0.10689014,93034.0,93020.0,0.34]
[1745419802874,0.10689014,93034.0,92996.0,0.0004248]
[1745419802875,0.08594573,93028.0,92996.0,0.0004248]
[1745419803104,0.045,93024.0,92996.0,0.0004248]
[1745419803346,0.07553757,93027.0,92996.0,0.0004248]
[1745419803347,0.1106538,93023.0,92996.0,0.0004248]
[1745419803575,0.10689014,93019.0,92996.0,0.0004248]
[1745419804714,0.11089014,93019.0,92996.0,0.0004248]
[1745419805374,0.02417268,93018.0,92996.0,0.0004248]
[1745419805593,0.11089014,93019.0,92996.0,0.0004248]
[1745419805594,0.22925014,93017.0,92996.0,0.0004248]
[1745419806051,0.0037637,93016.0,92996.0,0.0004248]
[1745419806268,0.15539014,93015.0,92996.0,0.0004248]
[1745419806496,0.00376395,93014.0,92996.0,0.0004248]
[1745419806721,0.10689014,93013.0,92996.0,0.0004248]
[1745419806958,0.03231536,93012.0,92996.0,0.0004248]
[1745419807201,0.01454085,93008.0,92996.0,0.0004248]
[1745419807424,0.57396726,93010.0,92991.0,0.002]
[1745419807425,0.10689014,93000.0,92991.0,0.0014248]
[1745419807650,0.0476,92999.0,92991.0,0.0014248]
[1745419807874,0.10689014,92998.0,92991.0,0.0014248]
[1745419809490,0.00376428,92997.0,92991.0,0.0014248]
[1745419809693,0.10689014,92996.0,92991.0,0.0014248]
[1745419809915,0.00376451,92995.0,92991.0,0.0014248]
[1745419810142,0.10689014,92994.0,92991.0,0.0014248]
[1745419810368,0.049,92992.0,92991.0,0.0014248]
[1745419810599,0.27829014,92992.0,92991.0,0.0014248]
[1745419810841,0.27829014,92992.0,92974.0,0.0004247]
[1745419810842,0.32359014,92992.0,92974.0,0.0004247]
[1745419811190,0.110655,92991.0,92974.0,0.0004247]
[1745419811632,0.10689014,92991.0,92974.0,0.0004247]
[1745419811881,0.03612386,92990.0,92974.0,0.0004247]
[1745419812143,0.10689014,92989.0,92974.0,0.0004247]
[1745419812435,0.12519597,92988.0,92974.0,0.0004247]
[1745419813351,0.11065512,92988.0,92974.0,0.0004247]
[1745419815475,0.15669014,92987.0,92974.0,0.0004247]
[1745419815697,0.04058662,92986.0,92974.0,0.0004247]
[1745419815919,0.10689014,92985.0,92974.0,0.0004247]
[1745419816153,0.01454085,92983.0,92974.0,0.0004247]
[1745419816398,0.21853099,92975.0,92958.0,0.0004247]
[1745419816632,0.01454085,92969.0,92958.0,0.0004247]
[1745419816865,0.10689014,92964.0,92958.0,0.0004247]
[1745419817095,0.22929014,92964.0,92958.0,0.0004247]
[1745419820191,0.24383099,92964.0,92958.0,0.0004247]
[1745419820429,0.11124085,92963.0,92958.0,0.0004247]
[1745419820633,0.12143099,92959.0,92958.0,0.0004247]
[1745419820892,0.06354085,92958.0,92951.0,0.002]
[1745419821083,0.01454085,92951.0,92940.0,0.0084249]
[1745419821295,0.10689014,92946.0,92940.0,0.0084249]
[1745419821420,0.12143099,92941.0,92940.0,0.0084249]
[1745419821620,0.17359805,92941.0,92940.0,0.0084249]
[1745419821830,0.01454085,92940.0,92936.0,0.0004247]
[1745419822048,0.12143099,92940.0,92936.0,0.0004247]
[1745419822468,0.12143099,92937.0,92936.0,0.0004247]
[1745419822688,0.10689014,92937.0,92936.0,0.0004247]
[1745419823542,0.12244,92939.0,92936.0,0.0004247]
[1745419823995,0.0458,92953.0,92936.0,0.56638468]
[1745419823996,0.007,92937.0,92936.0,0.56638468]
[1745419824418,0.007,92937.0,92936.0,0.56738468]
[1745419824628,0.007,92937.0,92936.0,0.3414247]
[1745419824843,0.11389014,92937.0,92936.0,0.3414247]
[1745419825510,0.10689014,92937.0,92936.0,0.3414247]
[1745419826140,0.10689014,92937.0,92936.0,0.001]
[1745419826346,0.12244,92949.0,92936.0,0.001]
[1745419826613,0.11065649,92948.0,92936.0,0.001]
[1745419826835,0.006,92937.0,92936.0,0.001]
[1745419827247,0.10689014,92948.0,92936.0,0.001]
[1745419827455,0.00376622,92947.0,92936.0,0.01099231]
[1745419827669,0.10689014,92946.0,92936.0,0.001]
[1745419827882,0.10689014,92946.0,92936.0,0.01132345]
[1745419828098,0.10689014,92946.0,92936.0,0.001]
[1745419828566,0.12244,92949.0,92937.0,0.21519925]
[1745419828806,0.22933014,92949.0,92938.0,0.488439]
[1745419829004,0.12644,92949.0,92940.0,0.34]
[1745419829219,0.10689014,92948.0,92940.0,0.34]
[1745419829428,0.10689014,92948.0,92936.0,0.01107076]
[1745419829816,0.002,92946.0,92936.0,0.01107076]
[1745419829984,0.10689014,92945.0,92936.0,0.001]
[1745419830817,0.10789014,92945.0,92926.0,0.55522471]
[1745419831429,0.10789014,92945.0,92931.0,0.34]
[1745419832121,0.10789014,92945.0,92932.0,0.01076055]
[1745419832315,0.10789014,92945.0,92931.0,0.34]
[1745419832567,0.10989014,92945.0,92928.0,0.34]
[1745419833541,0.10789014,92945.0,92927.0,0.01076113]
[1745419833774,0.10789014,92945.0,92923.0,0.35076159]
[1745419834014,0.10789014,92945.0,92923.0,0.34]
[1745419834302,0.02679921,92944.0,92923.0,0.34]
[1745419834511,0.10689014,92943.0,92923.0,0.33810525]
[1745419834716,0.00376642,92942.0,92923.0,0.33810525]
[1745419834932,0.10689014,92941.0,92918.0,0.01118647]
[1745419835145,0.00376642,92940.0,92918.0,0.22642974]
[1745419835370,0.15649014,92939.0,92918.0,0.0004243]
[1745419835589,0.10689014,92936.0,92919.0,0.01041589]
[1745419835810,0.10689014,92932.0,92919.0,0.0004245]
[1745419836023,0.00376735,92931.0,92919.0,0.0004245]
[1745419836257,0.10689014,92930.0,92919.0,0.01079587]
[1745419836486,0.10689014,92930.0,92919.0,0.0004245]
[1745419836702,0.0496,92939.0,92919.0,0.0004245]
[1745419836703,0.01562604,92939.0,92919.0,0.0004245]
[1745419836914,0.10689014,92929.0,92919.0,0.0004245]
[1745419837119,0.00365784,92928.0,92919.0,0.01051063]
[1745419837307,0.10689014,92927.0,92919.0,0.0004245]
[1745419837547,0.00365784,92926.0,92919.0,0.0004245]
[1745419837762,0.10689014,92925.0,92919.0,0.0004245]
[1745419837952,0.00365784,92924.0,92919.0,0.0004245]
[1745419838229,0.10689014,92923.0,92919.0,0.0004245]
[1745419838891,0.00365784,92922.0,92919.0,0.0004245]
[1745419839117,0.10689014,92921.0,92919.0,0.0004245]
[1745419839345,0.10689014,92921.0,92895.0,0.01076484]
[1745419839576,0.10689014,92921.0,92893.0,0.34]
[1745419839790,0.00365784,92920.0,92894.0,0.208274]
[1745419839979,0.10689014,92919.0,92896.0,0.01076472]
[1745419840206,0.00365784,92918.0,92896.0,0.01076472]
[1745419840407,0.10689014,92917.0,92896.0,0.34]
[1745419840578,0.10689014,92917.0,92896.0,0.35076472]
[1745419840802,0.10689014,92917.0,92896.0,0.34]
[1745419841131,0.11054798,92917.0,92896.0,0.34]
[1745419841545,0.11054798,92917.0,92893.0,0.35076507]
[1745419841755,0.11054798,92917.0,92893.0,0.34]
[1745419842211,0.0457,92916.0,92893.0,0.34]
[1745419842408,0.10689014,92915.0,92893.0,0.34]
[1745419842621,0.10689014,92915.0,92889.0,0.01076553]
[1745419842828,0.10689014,92915.0,92894.0,0.01076495]
[1745419843030,0.001,92917.0,92905.0,0.01076368]
[1745419843236,0.001,92917.0,92901.0,0.34]
[1745419843439,0.001,92917.0,92903.0,0.01076391]
[1745419843644,0.001,92917.0,92905.0,0.01076368]
[1745419843843,0.001,92917.0,92908.0,0.35076333]
[1745419843982,0.001,92917.0,92904.0,0.01076379]
[1745419844187,0.001,92917.0,92902.0,0.34]
[1745419844369,0.10689014,92916.0,92902.0,0.34]
[1745419844779,0.10689014,92916.0,92889.0,0.01076553]
[1745419844984,0.10689014,92916.0,92889.0,0.21530945]
[1745419845204,0.10689014,92916.0,92890.0,0.35076542]
[1745419845413,0.003,92917.0,92901.0,0.01076414]
[1745419845651,0.003,92917.0,92908.0,0.01076333]
[1745419845846,0.003,92917.0,92905.0,0.01076368]
[1745419846054,0.003,92917.0,92906.0,0.34]
[1745419846257,0.001,92917.0,92906.0,0.34]
[1745419846461,0.002,92917.0,92906.0,0.34]
[1745419846664,0.002,92917.0,92911.0,0.01076298]
[1745419846879,0.002,92917.0,92916.0,0.34]
[1745419847082,0.12216,92940.0,92917.0,0.34]
[1745419847371,0.11054798,92939.0,92917.0,0.34]
[1745419848202,0.11054798,92939.0,92915.0,0.01076252]
[1745419848411,0.10689014,92939.0,92915.0,0.01076252]
[1745419848626,0.10689014,92939.0,92914.0,0.35076264]
[1745419848827,0.10689014,92939.0,92914.0,0.34]
[1745419849522,0.10689014,92939.0,92914.0,0.01076264]
[1745419849748,0.00365784,92938.0,92913.0,0.34]
[1745419849958,0.10689014,92937.0,92913.0,0.34]
[1745419850385,0.10689014,92937.0,92913.0,0.22601722]
[1745419850601,0.10689014,92937.0,92910.0,0.0107631]
[1745419850794,0.10689014,92937.0,92912.0,0.34]
[1745419852376,0.10689014,92937.0,92908.0,0.01076333]
[1745419852377,0.10689014,92937.0,92911.0,0.01076298]
[1745419852593,0.10689014,92937.0,92909.0,0.34]
[1745419853488,0.10689014,92937.0,92907.0,0.35076345]
[1745419853715,0.10689014,92937.0,92907.0,0.56603189]
[1745419853935,0.10689014,92937.0,92909.0,0.01076321]
[1745419854156,0.10689014,92937.0,92909.0,0.35076321]
[1745419854578,0.10689014,92937.0,92909.0,0.34]
[1745419855179,0.00365784,92936.0,92906.0,0.34]
[1745419855405,0.10689014,92935.0,92906.0,0.34]
[1745419855612,0.00365784,92934.0,92906.0,0.34]
[1745419855810,0.10689014,92933.0,92899.0,0.01076437]
[1745419856016,0.00365784,92932.0,92899.0,0.22605074]
[1745419856222,0.00365784,92932.0,92900.0,0.01076426]
[1745419856223,0.10689014,92931.0,92900.0,0.01076426]
[1745419856425,0.00365784,92930.0,92900.0,0.01076426]
[1745419856627,0.10689014,92929.0,92901.0,0.01076414]
[1745419857024,0.00365784,92928.0,92901.0,0.35076414]
[1745419857230,0.10689014,92927.0,92903.0,0.35076391]
[1745419857427,0.10689014,92927.0,92903.0,0.34]
[1745419858202,0.10689014,92927.0,92876.0,0.03214169]
[1745419858203,0.048,92925.0,92897.0,0.34]
[1745419858356,0.11054798,92924.0,92891.0,0.22607112]
[1745419858562,0.10689014,92924.0,92892.0,0.01076518]
[1745419859098,0.10689014,92924.0,92894.0,0.35076495]
[1745419859339,0.02010901,92923.0,92894.0,0.35076495]
[1745419859545,0.10689014,92922.0,92894.0,0.34]
[1745419859681,0.11054798,92922.0,92894.0,0.34]
[1745419859877,0.10689014,92922.0,92894.0,0.34]
[1745419860180,0.11054798,92922.0,92891.0,0.34]
[1745419860521,0.10689014,92921.0,92891.0,0.34]
[1745419860696,0.0474,92919.0,92891.0,0.34]
[1745419860870,0.11054798,92918.0,92891.0,0.34]
[1745419861088,0.10689014,92918.0,92884.0,0.01076611]
[1745419861304,0.10689014,92918.0,92883.0,0.35076623]
[1745419861516,0.10689014,92918.0,92883.0,0.34]
[1745419861517,0.00365784,92917.0,92883.0,0.34]
[1745419861749,0.10689014,92916.0,92883.0,0.34]
[1745419862024,0.00365784,92915.0,92883.0,0.34]
[1745419862160,0.22877014,92914.0,92881.0,0.0004248]
[1745419862374,0.00365784,92913.0,92881.0,0.0004248]
[1745419862581,0.10689014,92912.0,92881.0,0.0004248]
[1745419862801,0.02690064,92911.0,92881.0,0.0004248]
[1745419863010,0.10689014,92910.0,92881.0,0.0004248]
[1745419863215,0.00365784,92909.0,92881.0,0.0004248]
[1745419863420,0.10689014,92908.0,92881.0,0.0004248]
[1745419863702,0.00365784,92907.0,92881.0,0.0004248]
[1745419863831,0.12026922,92906.0,92881.0,0.0004248]
[1745419864040,0.00365784,92905.0,92881.0,0.0004248]
[1745419864238,0.10689014,92904.0,92884.0,0.01076611]
[1745419864527,0.10689014,92904.0,92882.0,0.34]
[1745419865131,0.00365784,92903.0,92882.0,0.34]
[1745419865333,0.10689014,92902.0,92882.0,0.34]
[1745419865540,0.00365784,92901.0,92882.0,0.34]
[1745419865762,0.00365784,92901.0,92881.0,0.0004248]
[1745419865763,0.00365784,92901.0,92890.0,0.01076542]
[1745419865947,0.00365784,92901.0,92887.0,0.01076576]
[1745419865948,0.12188,92914.0,92889.0,0.01076553]
[1745419866149,0.10689014,92913.0,92888.0,0.34]
[1745419866354,0.10689014,92913.0,92890.0,0.01076542]
[1745419866564,0.10689014,92913.0,92902.0,0.34]
[1745419866776,0.0474,92928.0,92913.0,0.35076275]
[1745419866996,0.12192,92932.0,92918.0,0.34]
[1745419867217,0.0471,92936.0,92930.0,0.01076078]
[1745419867427,0.001,92937.0,92922.0,0.01076171]
[1745419867638,0.001,92937.0,92920.0,0.46707712]
[1745419867639,0.001,92937.0,92931.0,0.01076067]
[1745419868090,0.001,92937.0,92936.0,0.21520185]
[1745419868356,0.001,92937.0,92936.0,0.55520185]
[1745419868558,0.001,92937.0,92936.0,0.34]
[1745419869422,0.001,92937.0,92936.0,0.475018]
[1745419869856,0.0492,92965.0,92942.0,0.01075939]
[1745419870104,0.0492,92965.0,92946.0,0.01075893]
[1745419870303,0.0492,92965.0,92939.0,0.48084943]
[1745419870304,0.00450844,92957.0,92931.0,0.34]
[1745419870542,0.10889014,92949.0,92931.0,0.34]
[1745419870770,0.0477,92947.0,92918.0,0.01076217]
[1745419870996,0.0477,92947.0,92903.0,0.01076391]
[1745419870997,0.27742798,92946.0,92903.0,0.01076391]
[1745419871216,0.27377014,92946.0,92912.0,0.01076287]
[1745419871428,0.00365784,92945.0,92912.0,0.01076287]
[1745419871645,0.10689014,92944.0,92916.0,0.0107624]
[1745419871857,0.10689014,92944.0,92919.0,0.34]
[1745419872066,0.10689014,92944.0,92917.0,0.01076229]
[1745419872358,0.10689014,92944.0,92916.0,0.3507624]
[1745419872359,0.10689014,92944.0,92916.0,0.34]
[1745419872571,0.10689014,92944.0,92918.0,0.34]
[1745419872780,0.10689014,92944.0,92919.0,0.22600179]
[1745419872998,0.10689014,92944.0,92925.0,0.55522649]
[1745419873235,0.10689014,92944.0,92929.0,0.34]
[1745419873439,0.10689014,92944.0,92927.0,0.35076113]
[1745419873655,0.10689014,92944.0,92928.0,0.01076101]
[1745419873867,0.16688,92946.0,92929.0,0.34]
[1745419874275,0.16688,92946.0,92929.0,0.3507609]
[1745419874727,0.16688,92946.0,92929.0,0.34]
[1745419874950,0.001,92944.0,92928.0,0.01076101]
[1745419875161,0.001,92944.0,92927.0,0.34]
[1745419875374,0.10789014,92944.0,92927.0,0.34]
[1745419876003,0.10789014,92944.0,92921.0,0.34]
[1745419876432,0.11054798,92943.0,92905.0,0.01076368]
[1745419876637,0.11054798,92943.0,92899.0,0.01076437]
[1745419876844,0.0493,92939.0,92895.0,0.01076484]
[1745419877052,0.10689014,92934.0,92896.0,0.01076472]
[1745419877317,0.20599014,92932.0,92885.0,0.0004253]
[1745419877540,0.10689014,92923.0,92885.0,0.0004253]
[1745419877762,0.10689014,92920.0,92885.0,0.0004253]
[1745419877978,0.02823721,92919.0,92885.0,0.0004253]
[1745419878222,0.22877014,92918.0,92885.0,0.0004253]
[1745419878449,0.22877014,92918.0,92896.0,0.006]
[1745419878884,0.22877014,92918.0,92901.0,0.01076414]
[1745419879109,0.22877014,92918.0,92896.0,0.006]
[1745419879338,0.22877014,92918.0,92899.0,0.01076437]
[1745419879573,0.22877014,92918.0,92897.0,0.01076461]
[1745419879792,0.22877014,92918.0,92886.0,0.22608328]
[1745419880053,0.00365784,92917.0,92885.0,0.0034253]
[1745419880294,0.10689014,92916.0,92885.0,0.0034253]
[1745419880520,0.03183064,92915.0,92885.0,0.0004253]
[1745419880748,0.10689014,92914.0,92885.0,0.0004253]
[1745419880959,0.10689014,92914.0,92890.0,0.01076542]
[1745419881175,0.10689014,92914.0,92893.0,0.35076507]
[1745419881401,0.10689014,92914.0,92889.0,0.01076553]
[1745419881628,0.02287701,92913.0,92889.0,0.34]
[1745419881862,0.10689014,92912.0,92889.0,0.34]
[1745419882069,0.10689014,92912.0,92890.0,0.01076542]
[1745419882288,0.10689014,92912.0,92886.0,0.34]
[1745419882886,0.0471,92910.0,92886.0,0.34]
[1745419883102,0.11054798,92909.0,92886.0,0.34]
[1745419883326,0.11054798,92909.0,92885.0,0.0004253]
[1745419883327,0.10689014,92905.0,92885.0,0.0004253]
[1745419883539,0.10689014,92903.0,92885.0,0.0004253]
[1745419883780,0.00365784,92902.0,92885.0,0.0004253]
[1745419883980,0.12267494,92901.0,92885.0,0.0004253]
[1745419884195,0.12267494,92901.0,92886.0,0.002]
[1745419884425,0.00365784,92900.0,92886.0,0.002]
[1745419884663,0.10689014,92899.0,92885.0,0.0004253]
[1745419885506,0.00365784,92898.0,92885.0,0.0004253]
[1745419885747,0.0924,92896.0,92885.0,0.0004253]
[1745419885985,0.11054798,92895.0,92885.0,0.0004253]
[1745419886202,0.10689014,92895.0,92885.0,0.0004253]
[1745419886862,0.00365784,92894.0,92885.0,0.0004253]
[1745419887074,0.10689014,92893.0,92885.0,0.0004253]
[1745419887290,0.02395264,92892.0,92885.0,0.0004253]
[1745419887515,0.10689014,92891.0,92885.0,0.0004253]
[1745419887865,0.00365784,92890.0,92885.0,0.0004253]
[1745419888189,0.10689014,92889.0,92885.0,0.0004253]
[1745419888428,0.12533784,92888.0,92885.0,0.0004253]
[1745419888658,0.25209294,92887.0,92885.0,0.0004253]
[1745419888881,0.17158883,92886.0,92885.0,0.0004253]
[1745419889332,0.17158883,92886.0,92881.0,0.0004248]
[1745419889333,0.01454085,92885.0,92881.0,0.0004248]
[1745419889560,0.10689014,92882.0,92881.0,0.0004248]
[1745419889769,0.11054798,92882.0,92881.0,0.0004248]
[1745419890234,0.17073099,92882.0,92881.0,0.0004248]
[1745419890931,0.17538883,92882.0,92881.0,0.0004248]
[1745419891152,0.17538883,92882.0,92871.0,0.00062839]
[1745419891375,0.10689014,92873.0,92871.0,0.00062839]
[1745419891608,0.00365784,92872.0,92871.0,0.00062839]
[1745419891845,0.11054798,92872.0,92871.0,0.00062839]
[1745419893497,0.23134363,92872.0,92871.0,0.00062839]
[1745419893734,0.21663099,92872.0,92871.0,0.00062839]
[1745419893977,0.20209014,92872.0,92871.0,0.00062839]
[1745419894435,0.20809014,92872.0,92871.0,0.00062839]
[1745419895369,0.11289014,92872.0,92871.0,0.00062839]
[1745419895873,0.006,92872.0,92871.0,0.00062839]
[1745419896316,0.006,92872.0,92871.0,0.34162839]
[1745419896748,0.001,92882.0,92881.0,0.55532929]
[1745419897220,0.001,92882.0,92881.0,0.34]
[1745419897461,0.001,92882.0,92881.0,0.55532929]
[1745419898534,0.001,92882.0,92881.0,0.342]
[1745419900343,0.001,92882.0,92881.0,0.34]
[1745419902069,0.12172,92903.0,92881.0,0.34]
[1745419902293,0.10689014,92902.0,92887.0,0.21531483]
[1745419902493,0.10689014,92902.0,92887.0,0.01076576]
[1745419902710,0.10689014,92902.0,92887.0,0.34]
[1745419903110,0.12172,92903.0,92887.0,0.34]
[1745419903325,0.11054798,92902.0,92887.0,0.34]
[1745419903543,0.08594573,92901.0,92887.0,0.34]
[1745419903761,0.0486,92899.0,92871.0,0.00062839]
[1745419903968,0.14686357,92898.0,92871.0,0.00062839]
[1745419904664,0.10689014,92898.0,92871.0,0.00062839]
[1745419904870,0.10689014,92898.0,92871.0,0.35139601]
[1745419905210,0.10689014,92898.0,92871.0,0.34062839]
[1745419906035,0.10689014,92898.0,92871.0,0.21597859]
[1745419906244,0.10689014,92898.0,92872.0,0.0107675]
[1745419906469,0.10689014,92898.0,92875.0,0.34]
[1745419906666,0.10689014,92898.0,92878.0,0.34]
[1745419906890,0.10689014,92898.0,92877.0,0.35076692]
[1745419907093,0.10689014,92898.0,92877.0,0.34]
[1745419907532,0.11054798,92898.0,92877.0,0.34]
[1745419907944,0.11054798,92898.0,92875.0,0.35076716]
[1745419907945,0.0280868,92897.0,92875.0,0.35076716]
[1745419908156,0.10689014,92896.0,92875.0,0.35076716]
[1745419908598,0.10689014,92896.0,92876.0,0.01076704]
[1745419909026,0.10689014,92896.0,92874.0,0.34]
[1745419909586,0.00365784,92895.0,92874.0,0.34]
[1745419909781,0.10689014,92894.0,92874.0,0.34]
[1745419910293,0.10689014,92894.0,92888.0,0.022]
[1745419911602,0.11089014,92894.0,92888.0,0.022]
[1745419912766,0.004,92894.0,92888.0,0.022]
[1745419913651,0.0486,92899.0,92888.0,0.022]
[1745419913857,0.10689014,92898.0,92888.0,0.022]
[1745419914073,0.002,92894.0,92888.0,0.022]
[1745419914493,0.10689014,92898.0,92888.0,0.022]
[1745419915125,0.10689014,92898.0,92880.0,0.31250559]
[1745419917123,0.10989014,92898.0,92880.0,0.31250559]
[1745419917554,0.10689014,92898.0,92880.0,0.31250559]
[1745419917769,0.10789014,92898.0,92888.0,0.31250559]
[1745419918202,0.10789014,92898.0,92880.0,0.31250559]
[1745419919144,0.10789014,92898.0,92881.0,0.34]
[1745419919371,0.10689014,92898.0,92881.0,0.34]
[1745419919592,0.10989014,92898.0,92881.0,0.34]
[1745419920033,0.10689014,92898.0,92881.0,0.34]
[1745419920509,0.10789014,92898.0,92884.0,0.2153207]
[1745419920726,0.001,92898.0,92889.0,0.34]
[1745419920951,0.12144,92906.0,92889.0,0.34]
[1745419921218,0.0099247,92923.0,92889.0,0.34]
[1745419921219,0.001,92898.0,92896.0,0.31250559]
[1745419921453,0.001,92898.0,92897.0,0.5552922]
[1745419921903,0.001,92898.0,92897.0,0.58449403]
[1745419922595,0.12144,92922.0,92908.0,0.01076333]
[1745419922819,0.10773994,92920.0,92909.0,0.22602543]
[1745419923034,0.0008498,92920.0,92912.0,0.01076287]
[1745419923272,0.0008498,92920.0,92913.0,0.34]
[1745419923476,0.0008498,92920.0,92914.0,0.01076264]
[1745419923691,0.0008498,92920.0,92913.0,0.34]
[1745419924402,0.0008498,92920.0,92901.0,0.35076414]
[1745419924611,0.0008498,92920.0,92904.0,0.35076379]
[1745419924830,0.0008498,92920.0,92905.0,0.01076368]
[1745419925498,0.0008498,92920.0,92904.0,0.35076379]
[1745419925954,0.0008498,92920.0,92906.0,0.01076356]
[1745419926176,0.0008498,92920.0,92908.0,0.35076333]
[1745419926457,0.0008498,92920.0,92908.0,0.34]
[1745419926681,0.0008498,92920.0,92910.0,0.31250559]
[1745419927127,0.0008498,92920.0,92913.0,0.01076275]
[1745419927362,0.0008498,92920.0,92911.0,0.01076298]
[1745419927618,0.0008498,92920.0,92910.0,0.32326869]
[1745419928381,0.0008498,92920.0,92910.0,0.31250559]
[1745419929066,0.0018498,92920.0,92910.0,0.31250559]
[1745419929746,0.0008498,92920.0,92910.0,0.31250559]
[1745419930206,0.0008498,92920.0,92919.0,0.21524123]
[1745419931556,0.0008498,92920.0,92919.0,0.55524123]
[1745419932240,0.0008498,92920.0,92919.0,1.24825423]
[1745419932455,0.0008498,92920.0,92919.0,1.36968522]
[1745419932679,0.0008498,92920.0,92919.0,1.39888705]
[1745419932978,0.0018498,92920.0,92919.0,1.44708705]
[1745419933653,0.0008498,92934.0,92933.0,0.5552088]
[1745419933893,0.0008498,92934.0,92933.0,4.18676531]
[1745419934148,0.002,92969.0,92933.0,4.18676531]
[1745419934381,0.002,92969.0,92948.0,0.56971492]
[1745419934624,0.002,92969.0,92948.0,4.71392458]
[1745419934815,0.002,92969.0,92948.0,3.72441858]
[1745419935021,0.002,92969.0,92948.0,2.24600667]
[1745419935242,0.002,92969.0,92948.0,2.23511758]
[1745419936348,0.003,92949.0,92948.0,2.23511758]
[1745419939192,0.003,92949.0,92948.0,1.75984958]
[1745419942107,0.002,92949.0,92948.0,1.75984958]
[1745419942298,0.003,92949.0,92948.0,1.77073867]
[1745419942419,0.003,92949.0,92948.0,1.75984958]
[1745419942873,0.002,92949.0,92948.0,1.80864958]
[1745419943278,0.002,92949.0,92948.0,1.80964958]
[1745419943760,0.002,92949.0,92948.0,1.80864958]
[1745419944511,0.002,92969.0,92956.0,0.55515555]
[1745419944727,0.002,92969.0,92956.0,5.79790654]
[1745419944934,0.002,92969.0,92956.0,5.36964237]
[1745419945140,0.002,92969.0,92956.0,4.86927937]
[1745419945512,0.002,92969.0,92956.0,4.88016846]
[1745419945726,0.002,92969.0,92956.0,4.91214395]
[1745419945934,0.002,92969.0,92956.0,4.91414395]
[1745419946468,0.002,92969.0,92956.0,4.91214395]
[1745419946685,0.002,92969.0,92956.0,4.91314395]
[1745419948425,0.002,92969.0,92956.0,3.98604712]
[1745419948642,0.002,92969.0,92956.0,3.81147712]
[1745419949291,0.002,92969.0,92956.0,3.79693627]
[1745419949499,0.002,92969.0,92956.0,2.59192427]
[1745419950816,0.002,92969.0,92956.0,2.60646512]
[1745419951035,0.002,92969.0,92956.0,2.63566695]
[1745419951253,0.002,92969.0,92956.0,2.63666695]
[1745419951487,0.002,92969.0,92956.0,2.63396378]
[1745419952335,0.0018506,92957.0,92956.0,2.63396378]
[1745419952753,0.0008506,92957.0,92956.0,2.63396378]
[1745419952971,0.0008506,92957.0,92956.0,2.63496378]
[1745419953926,0.002,92969.0,92957.0,0.61819409]
[1745419954141,0.002,92969.0,92957.0,0.75428606]
[1745419954356,0.002,92969.0,92957.0,5.75428606]
[1745419954562,0.002,92969.0,92957.0,5.87528606]
[1745419955616,0.002,92969.0,92957.0,0.87628606]
[1745419956031,0.002,92969.0,92957.0,5.87628606]
[1745419957065,0.002,92969.0,92957.0,5.84708423]
[1745419958239,1e-08,92958.0,92957.0,5.87628606]
[1745419958470,1e-08,92958.0,92957.0,0.89648423]
[1745419958700,1e-08,92958.0,92957.0,0.92568606]
[1745419959829,1e-08,92958.0,92957.0,0.80468606]
[1745419960059,1e-08,92958.0,92957.0,0.92568606]
[1745419960966,1e-08,92958.0,92957.0,0.79858423]
[1745419961419,1e-08,92958.0,92957.0,100.79858423]
[1745419961860,1e-08,92958.0,92957.0,100.79758423]
[1745419962963,1e-08,92958.0,92957.0,100.82678606]
[1745419963626,1e-08,92958.0,92957.0,100.82778606]
[1745419964450,1e-08,92958.0,92957.0,100.82878606]
[1745419965092,1e-08,92958.0,92957.0,100.79958423]
[1745419965726,1e-08,92958.0,92957.0,100.78504338]
[1745419965950,1e-08,92958.0,92957.0,100.66404338]
[1745419966163,1e-08,92958.0,92957.0,100.79958423]
[1745419967318,1e-08,92958.0,92957.0,100.44504338]
[1745419967518,1e-08,92958.0,92957.0,100.44404338]
[1745419967719,1e-08,92958.0,92957.0,100.78404338]
[1745419967919,1e-08,92958.0,92957.0,100.78504338]
[1745419968311,1e-08,92958.0,92957.0,100.78404338]
[1745419969841,1e-08,92958.0,92957.0,100.462]
[1745419970125,0.00100001,92958.0,92957.0,100.001]
[1745419970525,0.04940001,92958.0,92957.0,100.001]
[1745419971126,0.09450001,92958.0,92957.0,100.001]
[1745419971761,0.09450001,92958.0,92957.0,100.341]
[1745419973753,0.09650001,92958.0,92957.0,100.341]
[1745419977582,0.08550001,92958.0,92957.0,100.55615324]
[1745419977797,0.08550001,92958.0,92957.0,100.341]
[1745419978030,0.08550001,92958.0,92957.0,100.346]